[Event "*** Titled Tuesday Blitz"]
[Site "Chess.com"]
[Date "2021.04.20"]
[Round "3"]
[White "LenkaPtacnikova"]
[Black "Politov_Pavel"]
[Result "0-1"]
[WhiteElo "2171"]
[BlackElo "2357"]
[TimeControl "180+1"]
[EndTime "10:27:56 PDT"]
[Termination "Politov_Pavel won by checkmate"]

1. c4 {[%clk 0:03:00.9]} 1... c5 {[%clk 0:02:58.1]} 2. g3 {[%clk 0:03:01.2]}
2... Nc6 {[%clk 0:02:57.8]} 3. Bg2 {[%clk 0:03:01.7]} 3... Nf6 {[%clk
0:02:58.3]} 4. Nf3 {[%clk 0:02:58.8]} 4... e6 {[%clk 0:02:56.1]} 5. d4 {[%clk
0:02:58.5]} 5... d5 {[%clk 0:02:52]} 6. O-O {[%clk 0:02:54.1]} 6... dxc4 {[%clk
0:02:44.4]} 7. dxc5 {[%clk 0:02:40]} 7... Bxc5 {[%clk 0:02:32.1]} 8. Qa4 {[%clk
0:02:34.7]} 8... Qb6 {[%clk 0:02:24.3]} 9. Ne5 {[%clk 0:02:24.7]} 9... O-O
{[%clk 0:02:07.4]} 10. Nxc6 {[%clk 0:02:23.7]} 10... bxc6 {[%clk 0:02:06.7]} 11.
Qxc4 {[%clk 0:02:23.1]} 11... Ba6 {[%clk 0:01:54.9]} 12. Qc2 {[%clk 0:02:22.7]}
12... Nd5 {[%clk 0:01:40.7]} 13. a3 {[%clk 0:02:06.8]} 13... Rac8 {[%clk
0:01:31.5]} 14. e4 {[%clk 0:01:52.7]} 14... Bxf1 {[%clk 0:01:18.5]} 15. Bxf1
{[%clk 0:01:51.7]} 15... Nf6 {[%clk 0:01:10.2]} 16. Nc3 {[%clk 0:01:51.6]} 16...
Bd4 {[%clk 0:01:01.7]} 17. Na4 {[%clk 0:01:50.5]} 17... Qc7 {[%clk 0:00:46.7]}
18. Bf4 {[%clk 0:01:41.9]} 18... e5 {[%clk 0:00:45.2]} 19. Bd2 {[%clk
0:01:39.7]} 19... Rfd8 {[%clk 0:00:44.2]} 20. h3 {[%clk 0:01:28.9]} 20... Nh5
{[%clk 0:00:40.7]} 21. Kg2 {[%clk 0:01:27.6]} 21... Qe7 {[%clk 0:00:32]} 22. Rc1
{[%clk 0:01:22.2]} 22... c5 {[%clk 0:00:30.5]} 23. Bc4 {[%clk 0:01:17.7]} 23...
Qf6 {[%clk 0:00:30]} 24. Ba5 {[%clk 0:01:15.8]} 24... Rd7 {[%clk 0:00:27.7]} 25.
Nc3 {[%clk 0:00:59.7]} 25... Qg5 {[%clk 0:00:22.6]} 26. Nd5 {[%clk 0:00:43.7]}
26... Nf4+ {[%clk 0:00:19.9]} 27. Kh2 {[%clk 0:00:44.1]} 27... Ne6 {[%clk
0:00:14.1]} 28. Bb5 {[%clk 0:00:37.4]} 28... Rb7 {[%clk 0:00:13.4]} 29. Ba6
{[%clk 0:00:37.3]} 29... Rbb8 {[%clk 0:00:13]} 30. Bxc8 {[%clk 0:00:36.7]} 30...
Rxc8 {[%clk 0:00:13.9]} 31. h4 {[%clk 0:00:35.2]} 31... Qh6 {[%clk 0:00:10.7]}
32. Ne7+ {[%clk 0:00:35.2]} 32... Kh8 {[%clk 0:00:10.1]} 33. Nxc8 {[%clk
0:00:35.9]} 33... g5 {[%clk 0:00:10.7]} 34. Qe2 {[%clk 0:00:32.7]} 34... gxh4
{[%clk 0:00:09.2]} 35. g4 {[%clk 0:00:32.4]} 35... Qf4+ {[%clk 0:00:07]} 36. Kg2
{[%clk 0:00:29.8]} 36... h3+ {[%clk 0:00:06.3]} 37. Kxh3 {[%clk 0:00:29.8]}
37... Ng5+ {[%clk 0:00:06.6]} 38. Kg2 {[%clk 0:00:29.7]} 38... Nxe4 {[%clk
0:00:06.9]} 39. Qf3 {[%clk 0:00:26.8]} 39... Qxc1 {[%clk 0:00:06.8]} 40. Qxf7
{[%clk 0:00:26]} 40... Qf4 {[%clk 0:00:06.3]} 41. Qe8+ {[%clk 0:00:19.1]} 41...
Kg7 {[%clk 0:00:06.5]} 42. Qe7+ {[%clk 0:00:19.2]} 42... Kg6 {[%clk 0:00:06.5]}
43. Qe6+ {[%clk 0:00:17.3]} 43... Nf6 {[%clk 0:00:05.9]} 44. Bd8 {[%clk
0:00:16.1]} 44... Qxf2+ {[%clk 0:00:05.6]} 45. Kh3 {[%clk 0:00:15.2]} 45... Qf1+
{[%clk 0:00:06]} 46. Kh4 {[%clk 0:00:15.3]} 46... Qh1+ {[%clk 0:00:06.1]} 47.
Kg3 {[%clk 0:00:15.6]} 47... Qg1+ {[%clk 0:00:06.6]} 48. Kf3 {[%clk 0:00:15.9]}
48... Qf2# {[%clk 0:00:06.3]} 0-1

[Event "*** Titled Tuesday Blitz"]
[Site "Chess.com"]
[Date "2021.04.20"]
[Round "3"]
[White "MarcoRiehle"]
[Black "mr_gustavo"]
[Result "1-0"]
[WhiteElo "2709"]
[BlackElo "2404"]
[TimeControl "180+1"]
[EndTime "10:27:57 PDT"]
[Termination "MarcoRiehle won by checkmate"]

1. e4 {[%clk 0:02:38.2]} 1... e6 {[%clk 0:02:56.7]} 2. c4 {[%clk 0:02:37.1]}
2... d5 {[%clk 0:02:56]} 3. cxd5 {[%clk 0:02:38]} 3... exd5 {[%clk 0:02:56.5]}
4. Qb3 {[%clk 0:02:38.2]} 4... dxe4 {[%clk 0:02:39.6]} 5. Bc4 {[%clk 0:02:36.6]}
5... Qd7 {[%clk 0:02:28.5]} 6. Nh3 {[%clk 0:02:35.8]} 6... Nc6 {[%clk
0:02:24.3]} 7. Ng5 {[%clk 0:02:35.1]} 7... Ne5 {[%clk 0:02:11.5]} 8. d3 {[%clk
0:02:33.6]} 8... Nxc4 {[%clk 0:02:08.2]} 9. Qxc4 {[%clk 0:02:32.1]} 9... Nf6
{[%clk 0:01:44.4]} 10. O-O {[%clk 0:02:31.2]} 10... h6 {[%clk 0:01:26.7]} 11.
Nxe4 {[%clk 0:02:29]} 11... Nxe4 {[%clk 0:01:26.9]} 12. Qxe4+ {[%clk 0:02:23.9]}
12... Be7 {[%clk 0:01:26.9]} 13. Re1 {[%clk 0:02:23.8]} 13... Qe6 {[%clk
0:01:26.8]} 14. Qa4+ {[%clk 0:02:19.6]} 14... Bd7 {[%clk 0:01:23.9]} 15. Qa5
{[%clk 0:01:59]} 15... Qd6 {[%clk 0:01:12.5]} 16. Nc3 {[%clk 0:01:58.7]} 16...
O-O {[%clk 0:01:04.7]} 17. Bf4 {[%clk 0:01:55.9]} 17... Qxf4 {[%clk 0:01:00.8]}
18. Rxe7 {[%clk 0:01:50.4]} 18... Rad8 {[%clk 0:00:55.4]} 19. Qxa7 {[%clk
0:01:47]} 19... Bc6 {[%clk 0:00:52.6]} 20. Qe3 {[%clk 0:01:45.3]} 20... Qb4
{[%clk 0:00:52.2]} 21. Re1 {[%clk 0:01:24.4]} 21... Qxb2 {[%clk 0:00:49.1]} 22.
d4 {[%clk 0:01:24.8]} 22... Rfe8 {[%clk 0:00:43]} 23. Re5 {[%clk 0:01:03.1]}
23... Rxe5 {[%clk 0:00:38.8]} 24. dxe5 {[%clk 0:01:04]} 24... Qd2 {[%clk
0:00:35.8]} 25. h3 {[%clk 0:00:58.8]} 25... Qxe3 {[%clk 0:00:34.1]} 26. Rxe3
{[%clk 0:00:59.7]} 26... Rd2 {[%clk 0:00:34.1]} 27. g4 {[%clk 0:00:56]} 27...
Kf8 {[%clk 0:00:31.2]} 28. a3 {[%clk 0:00:54]} 28... Ke7 {[%clk 0:00:30.7]} 29.
Ne2 {[%clk 0:00:52.7]} 29... g5 {[%clk 0:00:22.2]} 30. Kh2 {[%clk 0:00:50.9]}
30... Ke6 {[%clk 0:00:22]} 31. Kg3 {[%clk 0:00:51.1]} 31... Bb5 {[%clk
0:00:15.9]} 32. Nc3 {[%clk 0:00:49.7]} 32... Bc6 {[%clk 0:00:15.9]} 33. Ne2
{[%clk 0:00:47]} 33... Bb5 {[%clk 0:00:16.1]} 34. Nc3 {[%clk 0:00:47.3]} 34...
Bc6 {[%clk 0:00:08.9]} 35. f3 {[%clk 0:00:45.9]} 35... Rc2 {[%clk 0:00:06.2]}
36. Ne2 {[%clk 0:00:45.8]} 36... Rd2 {[%clk 0:00:06.6]} 37. f4 {[%clk
0:00:45.4]} 37... f6 {[%clk 0:00:04.9]} 38. f5+ {[%clk 0:00:44.9]} 38... Ke7
{[%clk 0:00:05.1]} 39. exf6+ {[%clk 0:00:39.2]} 39... Kxf6 {[%clk 0:00:06]} 40.
h4 {[%clk 0:00:39.9]} 40... gxh4+ {[%clk 0:00:06.1]} 41. Kxh4 {[%clk 0:00:40]}
41... Rd1 {[%clk 0:00:06.5]} 42. Ng3 {[%clk 0:00:33.5]} 42... Rd2 {[%clk
0:00:05.8]} 43. Nh5+ {[%clk 0:00:32.3]} 43... Kf7 {[%clk 0:00:05.7]} 44. f6
{[%clk 0:00:30.1]} 44... Rh2+ {[%clk 0:00:05.6]} 45. Kg3 {[%clk 0:00:30.4]}
45... Rg2+ {[%clk 0:00:06.3]} 46. Kh3 {[%clk 0:00:30.8]} 46... Rf2 {[%clk
0:00:04.1]} 47. Re7+ {[%clk 0:00:30.4]} 47... Kf8 {[%clk 0:00:04.8]} 48. Rxc7
{[%clk 0:00:27.7]} 48... Rf3+ {[%clk 0:00:05]} 49. Kh4 {[%clk 0:00:26.6]} 49...
Rxa3 {[%clk 0:00:05.6]} 50. Nf4 {[%clk 0:00:26.9]} 50... Ra8 {[%clk 0:00:01.8]}
51. Ne6+ {[%clk 0:00:23.4]} 51... Ke8 {[%clk 0:00:01]} 52. Re7# {[%clk
0:00:23.2]} 1-0

[Event "*** Titled Tuesday Blitz"]
[Site "Chess.com"]
[Date "2021.04.20"]
[Round "3"]
[White "AlexTriapishko"]
[Black "Nf3c5"]
[Result "1-0"]
[WhiteElo "2896"]
[BlackElo "2639"]
[TimeControl "180+1"]
[EndTime "10:27:59 PDT"]
[Termination "AlexTriapishko won by resignation"]

1. e4 {[%clk 0:03:00.9]} 1... c6 {[%clk 0:02:59.5]} 2. Nf3 {[%clk 0:03:00.3]}
2... d5 {[%clk 0:02:59.6]} 3. d3 {[%clk 0:03:01]} 3... g6 {[%clk 0:02:58]} 4.
Nbd2 {[%clk 0:02:50.7]} 4... Bg7 {[%clk 0:02:49.5]} 5. g3 {[%clk 0:02:50.7]}
5... e5 {[%clk 0:02:47.8]} 6. Bg2 {[%clk 0:02:50.9]} 6... Ne7 {[%clk 0:02:48.2]}
7. O-O {[%clk 0:02:51.4]} 7... O-O {[%clk 0:02:48.7]} 8. Re1 {[%clk 0:02:49.1]}
8... d4 {[%clk 0:02:33]} 9. Nc4 {[%clk 0:02:39.4]} 9... Qc7 {[%clk 0:02:26.1]}
10. b4 {[%clk 0:02:37.7]} 10... Be6 {[%clk 0:02:12.5]} 11. a4 {[%clk 0:02:28.7]}
11... h6 {[%clk 0:02:02.1]} 12. Ba3 {[%clk 0:02:14.3]} 12... Nd7 {[%clk
0:02:00.1]} 13. b5 {[%clk 0:02:12.1]} 13... c5 {[%clk 0:01:58.8]} 14. Nfd2
{[%clk 0:02:09.1]} 14... Nb6 {[%clk 0:01:53.1]} 15. Bc1 {[%clk 0:01:57.2]} 15...
Nxc4 {[%clk 0:01:46.7]} 16. Nxc4 {[%clk 0:01:57]} 16... Nc8 {[%clk 0:01:43.6]}
17. f4 {[%clk 0:01:55.5]} 17... Bxc4 {[%clk 0:01:29.3]} 18. dxc4 {[%clk
0:01:56.4]} 18... Nd6 {[%clk 0:01:29.6]} 19. Qd3 {[%clk 0:01:57.1]} 19... Rae8
{[%clk 0:01:24.4]} 20. fxe5 {[%clk 0:01:50.8]} 20... Rxe5 {[%clk 0:01:19.5]} 21.
Bf4 {[%clk 0:01:50.3]} 21... Re7 {[%clk 0:01:19.7]} 22. e5 {[%clk 0:01:48.7]}
22... Nf5 {[%clk 0:01:17.6]} 23. e6 {[%clk 0:01:49]} 23... Qd8 {[%clk
0:01:09.1]} 24. exf7+ {[%clk 0:01:48.4]} 24... Kh7 {[%clk 0:01:08]} 25. Bd5
{[%clk 0:01:21]} 25... Ne3 {[%clk 0:01:01.3]} 26. Bxe3 {[%clk 0:01:21.1]} 26...
dxe3 {[%clk 0:01:00.6]} 27. c3 {[%clk 0:01:21.6]} 27... Rfxf7 {[%clk 0:00:48.3]}
28. Rxe3 {[%clk 0:01:21.7]} 28... Rxe3 {[%clk 0:00:39]} 29. Qxe3 {[%clk
0:01:22.6]} 29... Re7 {[%clk 0:00:39.1]} 30. Qf3 {[%clk 0:01:06.2]} 30... Qd7
{[%clk 0:00:29.8]} 31. Rf1 {[%clk 0:01:05.5]} 31... h5 {[%clk 0:00:29.2]} 32. a5
{[%clk 0:01:01.2]} 32... b6 {[%clk 0:00:28.6]} 33. a6 {[%clk 0:00:59.6]} 33...
Qd6 {[%clk 0:00:27.9]} 34. Kg2 {[%clk 0:00:58.9]} 34... Qe5 {[%clk 0:00:27.6]}
35. Rf2 {[%clk 0:00:53.9]} 35... Qe1 {[%clk 0:00:23.9]} 36. h4 {[%clk
0:00:49.1]} 36... Bxc3 {[%clk 0:00:23.3]} 37. Qf8 {[%clk 0:00:47.8]} 37... Bg7
{[%clk 0:00:23.1]} 38. Qg8+ {[%clk 0:00:38.7]} 38... Kh6 {[%clk 0:00:23.2]} 39.
Qb8 {[%clk 0:00:39.6]} 39... Be5 {[%clk 0:00:18.6]} 40. Qf8+ {[%clk 0:00:34.6]}
40... Bg7 {[%clk 0:00:18.6]} 41. Qf4+ {[%clk 0:00:35.2]} 41... Kh7 {[%clk
0:00:18.2]} 42. Qf3 {[%clk 0:00:29.3]} 42... Bd4 {[%clk 0:00:17.8]} 43. Rf1
{[%clk 0:00:28.2]} 43... Qd2+ {[%clk 0:00:16.8]} 44. Kh3 {[%clk 0:00:27.5]}
44... Qh6 {[%clk 0:00:16.2]} 45. Qf8 {[%clk 0:00:23.5]} 45... Qe3 {[%clk
0:00:16.6]} 46. Bg8+ {[%clk 0:00:21.4]} 46... Kh8 {[%clk 0:00:13.7]} 47. Bf7+
{[%clk 0:00:21.5]} 47... Kh7 {[%clk 0:00:07.4]} 48. Qg8+ {[%clk 0:00:21.7]} 1-0

[Event "*** Titled Tuesday Blitz"]
[Site "Chess.com"]
[Date "2021.04.20"]
[Round "3"]
[White "slowdgehammer"]
[Black "Ze-Pequeno"]
[Result "0-1"]
[WhiteElo "2441"]
[BlackElo "2244"]
[TimeControl "180+1"]
[EndTime "10:28:00 PDT"]
[Termination "Ze-Pequeno won on time"]

1. e4 {[%clk 0:03:00.9]} 1... e5 {[%clk 0:02:59.3]} 2. Nf3 {[%clk 0:03:00.8]}
2... Nc6 {[%clk 0:02:59.2]} 3. Bb5 {[%clk 0:03:00.9]} 3... a6 {[%clk 0:02:59.1]}
4. Ba4 {[%clk 0:03:00.9]} 4... Nf6 {[%clk 0:02:59]} 5. d3 {[%clk 0:03:01.5]}
5... b5 {[%clk 0:02:58]} 6. Bb3 {[%clk 0:03:01.6]} 6... Be7 {[%clk 0:02:58.9]}
7. a3 {[%clk 0:03:01.9]} 7... O-O {[%clk 0:02:58.6]} 8. Nc3 {[%clk 0:03:01.9]}
8... d6 {[%clk 0:02:58.5]} 9. Nd5 {[%clk 0:03:01.2]} 9... Nxd5 {[%clk
0:02:56.3]} 10. Bxd5 {[%clk 0:02:58]} 10... Bb7 {[%clk 0:02:56.4]} 11. O-O
{[%clk 0:02:56.6]} 11... Na5 {[%clk 0:02:56.1]} 12. Bxb7 {[%clk 0:02:52]} 12...
Nxb7 {[%clk 0:02:57]} 13. b4 {[%clk 0:02:52.8]} 13... Qd7 {[%clk 0:02:55.1]} 14.
c4 {[%clk 0:02:51.5]} 14... Nd8 {[%clk 0:02:43.7]} 15. Qc2 {[%clk 0:02:49.1]}
15... Ne6 {[%clk 0:02:42.3]} 16. Be3 {[%clk 0:02:48]} 16... c6 {[%clk
0:02:31.4]} 17. Rfc1 {[%clk 0:02:47.2]} 17... Rfc8 {[%clk 0:02:26.3]} 18. Qb3
{[%clk 0:02:41.8]} 18... h6 {[%clk 0:02:24.3]} 19. h3 {[%clk 0:02:41.5]} 19...
Bf6 {[%clk 0:02:07.4]} 20. Rc2 {[%clk 0:02:40.8]} 20... a5 {[%clk 0:01:59.5]}
21. Rac1 {[%clk 0:02:39.4]} 21... axb4 {[%clk 0:01:59.7]} 22. axb4 {[%clk
0:02:38.9]} 22... Rcb8 {[%clk 0:01:52.5]} 23. c5 {[%clk 0:02:29.3]} 23... dxc5
{[%clk 0:01:49.6]} 24. Bxc5 {[%clk 0:02:29.4]} 24... Ra6 {[%clk 0:01:36.7]} 25.
Be3 {[%clk 0:02:10.8]} 25... Rba8 {[%clk 0:01:29.7]} 26. Rc3 {[%clk 0:01:57.3]}
26... Kh7 {[%clk 0:01:02.4]} 27. Qc2 {[%clk 0:01:48.3]} 27... Ra2 {[%clk
0:01:01.8]} 28. Qb1 {[%clk 0:01:41.7]} 28... R2a6 {[%clk 0:00:58.7]} 29. Rb3
{[%clk 0:01:04.6]} 29... g6 {[%clk 0:00:57]} 30. Rbc3 {[%clk 0:01:02.7]} 30...
Kg7 {[%clk 0:00:55.6]} 31. Qb3 {[%clk 0:00:57.3]} 31... Qd6 {[%clk 0:00:53.4]}
32. Bc5 {[%clk 0:00:50.1]} 32... Qd7 {[%clk 0:00:46.4]} 33. Qd1 {[%clk
0:00:46.2]} 33... Ra2 {[%clk 0:00:42.5]} 34. Qe1 {[%clk 0:00:38.8]} 34... R8a6
{[%clk 0:00:40.5]} 35. Qe3 {[%clk 0:00:38.4]} 35... R2a3 {[%clk 0:00:35.4]} 36.
g3 {[%clk 0:00:33.3]} 36... Ra2 {[%clk 0:00:33]} 37. h4 {[%clk 0:00:32.2]} 37...
Nd4 {[%clk 0:00:32]} 38. Kg2 {[%clk 0:00:11.3]} 38... Re2 {[%clk 0:00:29]} 39.
Qxe2 {[%clk 0:00:01.9]} 39... Nxe2 {[%clk 0:00:28.6]} 40. R3c2 {[%clk
0:00:02.4]} 40... Nxc1 {[%clk 0:00:27.9]} 41. Rxc1 {[%clk 0:00:03.3]} 41... Qxd3
{[%clk 0:00:27.3]} 42. Be3 {[%clk 0:00:03.2]} 42... Qxe4 {[%clk 0:00:26.2]} 43.
Re1 {[%clk 0:00:01.6]} 43... Qxb4 {[%clk 0:00:25.3]} 44. Bd2 {[%clk 0:00:01.2]}
44... Qb2 {[%clk 0:00:22.2]} 45. Re2 {[%clk 0:00:01.3]} 45... Qb3 {[%clk
0:00:16.8]} 46. Re3 {[%clk 0:00:01.1]} 46... Qd5 {[%clk 0:00:16.1]} 0-1

[Event "*** Titled Tuesday Blitz"]
[Site "Chess.com"]
[Date "2021.04.20"]
[Round "3"]
[White "BahadirOzen"]
[Black "AlhosaniOmran1"]
[Result "1-0"]
[WhiteElo "2702"]
[BlackElo "2513"]
[TimeControl "180+1"]
[EndTime "10:28:02 PDT"]
[Termination "BahadirOzen won by resignation"]

1. g3 {[%clk 0:03:00.9]} 1... Nf6 {[%clk 0:02:59]} 2. Bg2 {[%clk 0:03:00.9]}
2... g6 {[%clk 0:02:59]} 3. e4 {[%clk 0:03:00]} 3... d6 {[%clk 0:02:55.4]} 4. d4
{[%clk 0:03:00]} 4... Bg7 {[%clk 0:02:55.2]} 5. Ne2 {[%clk 0:03:00.5]} 5... O-O
{[%clk 0:02:54.1]} 6. O-O {[%clk 0:03:00.2]} 6... e5 {[%clk 0:02:49]} 7. h3
{[%clk 0:02:57.6]} 7... Nc6 {[%clk 0:02:47]} 8. Nbc3 {[%clk 0:02:56.4]} 8... Re8
{[%clk 0:02:45.1]} 9. Be3 {[%clk 0:02:53.6]} 9... exd4 {[%clk 0:02:39.2]} 10.
Nxd4 {[%clk 0:02:53.6]} 10... Nxd4 {[%clk 0:02:39]} 11. Bxd4 {[%clk 0:02:51.8]}
11... Be6 {[%clk 0:02:39]} 12. Qd2 {[%clk 0:02:46.7]} 12... Qd7 {[%clk
0:02:36.6]} 13. Kh2 {[%clk 0:02:46.2]} 13... Rad8 {[%clk 0:02:24.5]} 14. Rad1
{[%clk 0:02:42]} 14... b5 {[%clk 0:02:05.5]} 15. Qg5 {[%clk 0:02:13.4]} 15... h6
{[%clk 0:01:58.9]} 16. Qxb5 {[%clk 0:02:12.2]} 16... Qxb5 {[%clk 0:01:57.4]} 17.
Nxb5 {[%clk 0:02:12.3]} 17... Bc4 {[%clk 0:01:58.3]} 18. Nxc7 {[%clk 0:02:07.5]}
18... Bxf1 {[%clk 0:01:38.8]} 19. Nxe8 {[%clk 0:02:02.4]} 19... Rxe8 {[%clk
0:01:34.9]} 20. Rxf1 {[%clk 0:01:36.6]} 20... Ng4+ {[%clk 0:01:28.1]} 21. hxg4
{[%clk 0:01:37.5]} 21... Bxd4 {[%clk 0:01:29]} 22. c3 {[%clk 0:01:32]} 22... Bc5
{[%clk 0:01:27.4]} 23. Bf3 {[%clk 0:01:25.2]} 23... Rb8 {[%clk 0:01:26.5]} 24.
b4 {[%clk 0:01:24.7]} 24... Bb6 {[%clk 0:01:26.8]} 25. Be2 {[%clk 0:01:17.9]}
25... Rc8 {[%clk 0:01:21.9]} 26. c4 {[%clk 0:01:16.8]} 26... Bd4 {[%clk
0:01:21.4]} 27. Kg2 {[%clk 0:01:14.5]} 27... Bc3 {[%clk 0:01:16.6]} 28. Rb1
{[%clk 0:01:13.5]} 28... Rb8 {[%clk 0:01:15.8]} 29. Rb3 {[%clk 0:01:02.5]} 29...
Bd2 {[%clk 0:01:12.3]} 30. b5 {[%clk 0:00:54.7]} 30... Kg7 {[%clk 0:01:06.2]}
31. Ra3 {[%clk 0:00:51.2]} 31... Rb7 {[%clk 0:01:02.9]} 32. f4 {[%clk
0:00:50.8]} 32... Bb4 {[%clk 0:01:01.7]} 33. Ra6 {[%clk 0:00:50.7]} 33... Bc5
{[%clk 0:01:00.8]} 34. Rc6 {[%clk 0:00:49.4]} 34... Re7 {[%clk 0:00:58.2]} 35.
Bd3 {[%clk 0:00:47.1]} 35... Bb4 {[%clk 0:00:50.2]} 36. Kf3 {[%clk 0:00:45.7]}
36... Ba3 {[%clk 0:00:41.3]} 37. Ke2 {[%clk 0:00:39.4]} 37... Bb4 {[%clk
0:00:39.1]} 38. a4 {[%clk 0:00:38.5]} 38... f6 {[%clk 0:00:36.8]} 39. a5 {[%clk
0:00:34]} 39... f5 {[%clk 0:00:28.6]} 40. gxf5 {[%clk 0:00:33.2]} 40... gxf5
{[%clk 0:00:28.4]} 41. Kf3 {[%clk 0:00:33.5]} 41... fxe4+ {[%clk 0:00:28.8]} 42.
Bxe4 {[%clk 0:00:33.7]} 42... Bxa5 {[%clk 0:00:28.1]} 43. Rxd6 {[%clk
0:00:32.9]} 43... Rc7 {[%clk 0:00:29]} 44. Rg6+ {[%clk 0:00:32.6]} 44... Kf7
{[%clk 0:00:28.3]} 45. Rxh6 {[%clk 0:00:29.5]} 45... Ke7 {[%clk 0:00:27.2]} 46.
Rh7+ {[%clk 0:00:28.8]} 46... Kd6 {[%clk 0:00:27.7]} 47. Rxc7 {[%clk 0:00:29.3]}
47... Bxc7 {[%clk 0:00:27.6]} 48. Bd5 {[%clk 0:00:27.7]} 48... Kc5 {[%clk
0:00:27.7]} 49. Bf7 {[%clk 0:00:27.8]} 49... Kd4 {[%clk 0:00:27.8]} 50. g4
{[%clk 0:00:28]} 50... Kc5 {[%clk 0:00:28]} 51. Ke4 {[%clk 0:00:27.8]} 51... Kd6
{[%clk 0:00:28.6]} 52. g5 {[%clk 0:00:28]} 52... Bb6 {[%clk 0:00:28.7]} 53. Bd5
{[%clk 0:00:25.7]} 53... Bd8 {[%clk 0:00:27.6]} 54. Kf5 {[%clk 0:00:24.9]} 54...
Ke7 {[%clk 0:00:27.1]} 55. Kg6 {[%clk 0:00:24.8]} 55... Kf8 {[%clk 0:00:24.8]}
56. f5 {[%clk 0:00:24.8]} 1-0

[Event "*** Titled Tuesday Blitz"]
[Site "Chess.com"]
[Date "2021.04.20"]
[Round "3"]
[White "KeithArkell"]
[Black "MrChampion_Coach"]
[Result "0-1"]
[WhiteElo "2590"]
[BlackElo "2417"]
[TimeControl "180+1"]
[EndTime "10:28:02 PDT"]
[Termination "MrChampion_Coach won on time"]

1. d4 {[%clk 0:00:48.9]} 1... c6 {[%clk 0:03:00.9]} 2. Nf3 {[%clk 0:00:47.9]}
2... d5 {[%clk 0:03:00.8]} 3. c4 {[%clk 0:00:47.6]} 3... e6 {[%clk 0:03:01.1]}
4. Bg5 {[%clk 0:00:46.1]} 4... Qb6 {[%clk 0:02:58.5]} 5. Nbd2 {[%clk 0:00:42]}
5... Qxb2 {[%clk 0:02:54.7]} 6. Rc1 {[%clk 0:00:41.9]} 6... Bb4 {[%clk 0:02:50]}
7. e3 {[%clk 0:00:41.7]} 7... f6 {[%clk 0:02:41.3]} 8. Bh4 {[%clk 0:00:40.7]}
8... Ne7 {[%clk 0:02:40.9]} 9. Bg3 {[%clk 0:00:40]} 9... O-O {[%clk 0:02:37.5]}
10. Bd3 {[%clk 0:00:39.9]} 10... Qa3 {[%clk 0:02:36]} 11. Qc2 {[%clk 0:00:38.2]}
11... Na6 {[%clk 0:02:26.8]} 12. Bxh7+ {[%clk 0:00:36.8]} 12... Kh8 {[%clk
0:02:26.1]} 13. O-O {[%clk 0:00:36.1]} 13... Bxd2 {[%clk 0:02:22.7]} 14. Nxd2
{[%clk 0:00:35.7]} 14... Nb4 {[%clk 0:02:20.5]} 15. Qb1 {[%clk 0:00:36]} 15...
Nxa2 {[%clk 0:02:11.3]} 16. Rc2 {[%clk 0:00:34.4]} 16... Nc3 {[%clk 0:02:06.5]}
17. Rxc3 {[%clk 0:00:32.1]} 17... Qxc3 {[%clk 0:02:06]} 18. Nf3 {[%clk
0:00:32.4]} 18... Nf5 {[%clk 0:01:37.9]} 19. Bxf5 {[%clk 0:00:29.9]} 19... exf5
{[%clk 0:01:38]} 20. Rc1 {[%clk 0:00:30.1]} 20... Qa3 {[%clk 0:01:32.5]} 21. Nh4
{[%clk 0:00:29.6]} 21... Re8 {[%clk 0:01:21.2]} 22. Ng6+ {[%clk 0:00:25.6]}
22... Kh7 {[%clk 0:01:20.8]} 23. Nf4 {[%clk 0:00:25.7]} 23... Bd7 {[%clk
0:01:10.4]} 24. h4 {[%clk 0:00:25.2]} 24... dxc4 {[%clk 0:01:06]} 25. Rxc4
{[%clk 0:00:24.6]} 25... b6 {[%clk 0:00:56.7]} 26. Rc2 {[%clk 0:00:18.7]} 26...
Qe7 {[%clk 0:00:50.3]} 27. h5 {[%clk 0:00:17.8]} 27... Qe4 {[%clk 0:00:50.1]}
28. Qc1 {[%clk 0:00:17.5]} 28... Rac8 {[%clk 0:00:48.8]} 29. Rc3 {[%clk
0:00:17.9]} 29... c5 {[%clk 0:00:46]} 30. dxc5 {[%clk 0:00:18.1]} 30... bxc5
{[%clk 0:00:44.3]} 31. Rxc5 {[%clk 0:00:18.2]} 31... Rxc5 {[%clk 0:00:41.1]} 32.
Qxc5 {[%clk 0:00:19.1]} 32... Qb7 {[%clk 0:00:33.2]} 33. Nd5 {[%clk 0:00:14.4]}
33... Bc6 {[%clk 0:00:31]} 34. Nf4 {[%clk 0:00:12]} 34... Qd7 {[%clk 0:00:25.9]}
35. Kh2 {[%clk 0:00:11.6]} 35... Rc8 {[%clk 0:00:25.2]} 36. Qa5 {[%clk
0:00:09.7]} 36... Ba8 {[%clk 0:00:23.1]} 37. Qa1 {[%clk 0:00:09.1]} 37... Qb7
{[%clk 0:00:21.5]} 38. f3 {[%clk 0:00:08.5]} 38... Rc2 {[%clk 0:00:20.5]} 39. h6
{[%clk 0:00:07.9]} 39... Kxh6 {[%clk 0:00:18.7]} 40. Qa3 {[%clk 0:00:02.4]}
40... Rc8 {[%clk 0:00:17.8]} 41. Qd6 {[%clk 0:00:01.5]} 41... Qc7 {[%clk
0:00:15.5]} 42. Qe6 {[%clk 0:00:01.2]} 42... Qc6 {[%clk 0:00:01.6]} 43. Qf7
{[%clk 0:00:01.4]} 43... Qe8 {[%clk 0:00:01.2]} 0-1